bitfinex-derivatives/quotes_BTCF0:USTF0_20250324
["timestamp","ask_amount","ask_price","bid_price","bid_amount"]
[1742846055672,0.2139,88281.0,88271.0,0.6212]
[1742846055866,0.00180001,88280.0,88271.0,0.6212]
[1742846056071,0.21570001,88280.0,88271.0,0.6212]
[1742846056275,0.21566,88280.0,88271.0,0.3712]
[1742846056969,0.3608,88277.0,88271.0,0.0054]
[1742846057173,0.2139,88276.0,88263.0,0.77307001]
[1742846057367,0.21526,88276.0,88263.0,0.87443001]
[1742846057767,0.21526,88276.0,88273.0,0.3608]
[1742846057976,0.21526,88276.0,88273.0,0.36216]
[1742846058472,0.21526,88276.0,88274.0,0.005]
[1742846058679,0.21526,88276.0,88274.0,0.00636]
[1742846059370,0.21526,88276.0,88274.0,0.01593736]
[1742846059571,0.21526,88276.0,88274.0,0.26636]
[1742846059770,0.21526,88276.0,88275.0,0.0144]
[1742846059971,0.21526,88276.0,88275.0,0.2744]
[1742846060171,0.21526,88276.0,88275.0,0.2794]
[1742846060479,0.2139,88276.0,88275.0,0.26]
[1742846060981,0.22312229,88276.0,88275.0,0.264]
[1742846061682,0.22312229,88276.0,88275.0,0.266]
[1742846062272,0.22312229,88276.0,88275.0,0.265]
[1742846062784,0.22312229,88276.0,88275.0,0.264]
[1742846062981,0.22312229,88276.0,88275.0,0.266]
[1742846063377,0.22312229,88276.0,88275.0,0.262]
[1742846063573,0.22312229,88276.0,88275.0,0.264]
[1742846064277,0.22312229,88276.0,88275.0,0.266]
[1742846064475,0.22312229,88276.0,88275.0,0.264]
[1742846064673,0.22312229,88276.0,88275.0,0.265]
[1742846064877,0.22312229,88276.0,88275.0,1.765]
[1742846065079,0.22312229,88276.0,88275.0,1.764]
[1742846065284,0.22312229,88276.0,88275.0,1.767]
[1742846065584,0.22312229,88276.0,88275.0,0.53996742]
[1742846066983,0.22312229,88276.0,88275.0,0.53596742]
[1742846067180,0.22312229,88276.0,88275.0,0.53996742]
[1742846067787,0.22312229,88276.0,88275.0,0.7142161]
[1742846069186,0.0004,88280.0,88275.0,0.7142161]
[1742846069187,0.00017001,88284.0,88275.0,2.3642161]
[1742846069387,0.00017001,88284.0,88283.0,0.3608]
[1742846069687,0.00157002,88284.0,88283.0,0.7034]
[1742846069980,0.01523272,88284.0,88283.0,0.7034]
[1742846070377,0.01523272,88284.0,88283.0,0.8534]
[1742846070574,0.3608,88337.0,88283.0,1.3855]
[1742846070786,0.11124,88332.0,88295.0,0.3608]
[1742846070993,0.00855553,88333.0,88311.0,0.3608]
[1742846071287,0.00855553,88333.0,88311.0,0.4734]
[1742846071880,0.00016868,88320.0,88311.0,0.4734]
[1742846072076,0.00016868,88320.0,88311.0,0.36216]
[1742846074083,0.00016868,88320.0,88311.0,1.2135492]
[1742846074390,0.00076869,88320.0,88311.0,1.2145492]
[1742846074885,0.00212869,88320.0,88311.0,1.2145492]
[1742846075081,0.21186868,88320.0,88311.0,1.2145492]
[1742846075485,0.21186868,88320.0,88311.0,0.36316]
[1742846075787,0.21186868,88320.0,88312.0,0.11124]
[1742846075991,0.1088,88319.0,88312.0,0.1126]
[1742846076386,0.2063,88318.0,88312.0,0.1126]
[1742846077182,0.2063,88318.0,88312.0,0.1136]
[1742846077782,0.2063,88318.0,88312.0,0.1126]
[1742846077983,0.2063,88318.0,88312.0,0.1136]
[1742846078592,0.20774,88318.0,88312.0,0.1136]
[1742846078891,0.20774,88318.0,88313.0,0.0987]
[1742846079088,0.20774,88318.0,88313.0,0.10006]
[1742846079283,0.20774,88318.0,88313.0,0.54226057]
[1742846079479,0.2063,88318.0,88313.0,0.54226057]
[1742846079678,0.2063,88318.0,88313.0,0.44356057]
[1742846080286,0.2063,88318.0,88317.0,0.3608]
[1742846080482,0.0004,88328.0,88317.0,1.15426]
[1742846080695,0.0004,88328.0,88327.0,0.3608]
[1742846080898,0.0004,88328.0,88327.0,0.75336]
[1742846081082,0.0004,88328.0,88327.0,2.25336]
[1742846081282,0.0004,88328.0,88327.0,2.2634062]
[1742846081490,0.00950302,88328.0,88327.0,2.2634062]
[1742846081688,0.01050302,88328.0,88327.0,2.2634062]
[1742846082395,0.01050302,88328.0,88327.0,2.4134062]
[1742846082894,0.0014,88328.0,88327.0,2.4134062]
[1742846083288,0.0024,88328.0,88327.0,2.4134062]
[1742846083995,0.01144852,88328.0,88327.0,2.4134062]
[1742846084690,0.01144852,88328.0,88327.0,2.8255062]
[1742846085091,0.01144852,88328.0,88327.0,2.6755062]
[1742846085288,0.01144852,88328.0,88327.0,1.1755062]
[1742846085690,0.01144852,88328.0,88327.0,2.6755062]
[1742846085988,0.01144852,88328.0,88327.0,3.11770677]
[1742846086687,0.0433412,88343.0,88327.0,3.11770677]
[1742846086988,0.1006,88354.0,88342.0,0.3608]
[1742846087183,0.1006,88354.0,88342.0,0.36216]
[1742846088589,0.002,88343.0,88342.0,0.36216]
[1742846089885,0.2057,88343.0,88342.0,0.36216]
[1742846090100,0.20430001,88343.0,88327.0,1.61906555]
[1742846090297,0.2037,88343.0,88335.0,0.3608]
[1742846090502,0.20466001,88343.0,88337.0,0.3608]
[1742846090700,0.20466001,88343.0,88337.0,0.45184]
[1742846090901,0.20466001,88343.0,88338.0,0.47522536]
[1742846091204,0.2047,88343.0,88338.0,0.46166536]
[1742846093506,0.2067,88343.0,88338.0,0.46166536]
[1742846094901,0.2067,88343.0,88338.0,0.29314306]
[1742846097498,0.3608,88340.0,88338.0,0.20314306]
[1742846097802,0.3116,88339.0,88338.0,0.20314306]
[1742846098099,0.31256001,88339.0,88337.0,0.26932536]
[1742846098299,0.31256001,88339.0,88337.0,0.27000536]
[1742846099199,0.0088184,88338.0,88337.0,0.27000536]
[1742846099401,0.0094584,88338.0,88337.0,0.27000536]
[1742846099600,0.2187584,88338.0,88337.0,0.27000536]
[1742846099796,0.20994,88338.0,88337.0,0.27000536]
[1742846100494,0.20994,88338.0,88337.0,0.49000536]
[1742846101002,0.21294,88338.0,88337.0,0.49000536]
[1742846101197,0.2123,88338.0,88337.0,0.48932536]
[1742846101399,0.2123,88338.0,88337.0,0.26932536]
[1742846102300,0.22117883,88338.0,88337.0,0.26932536]
[1742846103001,0.22117883,88338.0,88329.0,1.5]
[1742846103200,0.22117883,88338.0,88329.0,0.1]
[1742846103596,0.00887883,88337.0,88330.0,0.109]
[1742846103904,0.00887883,88337.0,88330.0,0.209]
[1742846104202,0.2093,88336.0,88331.0,0.1063]
[1742846104397,0.21817883,88336.0,88331.0,0.2163]
[1742846104791,0.21817883,88336.0,88332.0,0.109]
[1742846105102,0.00887883,88335.0,88332.0,0.209]
[1742846105296,0.00887883,88335.0,88333.0,0.1063]
[1742846105602,0.21817883,88334.0,88333.0,0.2063]
[1742846105799,0.21817883,88334.0,88333.0,0.3153]
[1742846106905,0.21817883,88334.0,88333.0,0.31594]
[1742846107302,0.21817883,88334.0,88333.0,0.10064]
[1742846107497,0.57957884,88334.0,88333.0,0.10064]
[1742846107699,0.57957884,88334.0,88333.0,0.00064]
[1742846108004,0.57957884,88334.0,88329.0,0.0073567]
[1742846108005,0.58257884,88334.0,88329.0,0.0073567]
[1742846108199,0.58257884,88334.0,88326.0,0.00016981]
[1742846108399,0.00887883,88333.0,88326.0,0.00080981]
[1742846108608,0.00975884,88333.0,88326.0,0.00080981]
[1742846109010,0.00887883,88332.0,88322.0,0.40396498]
[1742846109305,0.3608,88324.0,88322.0,0.40456498]
[1742846109510,0.11116,88323.0,88322.0,0.40456498]
[1742846109710,0.12115884,88323.0,88322.0,0.40456498]
[1742846110409,0.12115884,88323.0,88314.0,0.00016981]
[1742846110609,0.4174089,88315.0,88303.0,0.00045298]
[1742846110802,0.3608,88304.0,88303.0,0.00045298]
[1742846111003,0.48182795,88304.0,88303.0,0.00045298]
[1742846111597,0.37066795,88304.0,88303.0,0.00045298]
[1742846112005,0.3805659,88304.0,88303.0,0.00045298]
[1742846112210,0.3805659,88304.0,88303.0,0.00245298]
[1742846112715,0.38963245,88304.0,88303.0,0.00045298]
[1742846113409,0.38963245,88304.0,88303.0,0.00545298]
[1742846114205,0.38963245,88304.0,88303.0,0.00045298]
[1742846115213,0.38963245,88304.0,88303.0,0.00109298]
[1742846116216,0.38963245,88304.0,88303.0,0.00045298]
[1742846116612,0.53963245,88304.0,88295.0,0.00016981]
[1742846116811,0.3608,88296.0,88295.0,0.00016981]
[1742846117011,0.47328001,88296.0,88295.0,0.00016981]
[1742846117211,0.48234656,88296.0,88295.0,0.00016981]
[1742846118417,0.11325,88290.0,88287.0,0.00028326]
[1742846118613,0.3608,88288.0,88287.0,0.00088326]
[1742846118918,0.36204001,88288.0,88287.0,0.00088326]
[1742846119416,0.53930656,88288.0,88287.0,0.00028326]
[1742846119614,0.54030656,88288.0,88287.0,0.00028326]
[1742846120220,0.69030656,88288.0,88279.0,0.00016981]
[1742846120412,0.3608,88280.0,88279.0,0.00016981]
[1742846120613,0.36204001,88280.0,88279.0,0.00016981]
[1742846121212,0.37110656,88280.0,88279.0,0.00016981]
[1742846121714,0.48234656,88280.0,88279.0,0.00016981]
[1742846122121,0.48234656,88280.0,88279.0,0.00116981]
[1742846123110,0.63234656,88280.0,88279.0,0.00116981]
[1742846124221,0.63234656,88280.0,88239.0,0.36125331]
[1742846124414,0.3608,88263.0,88255.0,0.00109323]
[1742846124616,0.27814,88262.0,88255.0,0.00109323]
[1742846124816,0.27938001,88262.0,88255.0,0.00045323]
[1742846125025,0.4740931,88256.0,88255.0,0.00045323]
[1742846125212,0.36204001,88256.0,88255.0,0.00045323]
[1742846125623,0.36204001,88256.0,88255.0,0.00645323]
[1742846125822,0.53800656,88256.0,88255.0,0.00645323]
[1742846126124,0.53800656,88256.0,88255.0,0.01245323]
[1742846126524,0.5463295,88256.0,88255.0,0.01045323]
[1742846126715,0.55662161,88256.0,88255.0,0.01045323]
[1742846128322,0.54755506,88256.0,88255.0,0.01045323]
[1742846131218,0.38065506,88256.0,88255.0,0.01045323]
[1742846131412,0.49193506,88256.0,88255.0,0.21515323]
[1742846131613,0.49193506,88256.0,88255.0,0.21579323]
[1742846132423,0.38065506,88256.0,88255.0,0.21579323]
[1742846132625,0.38942389,88256.0,88255.0,0.21579323]
[1742846133228,0.38065506,88256.0,88255.0,0.21579323]
[1742846134128,0.37233212,88256.0,88255.0,0.21579323]
[1742846134423,0.38113447,88256.0,88255.0,0.21579323]
[1742846135028,0.38960406,88256.0,88255.0,0.21579323]
[1742846136622,0.2196511,88256.0,88255.0,0.21579323]
[1742846137224,0.2196511,88256.0,88255.0,0.01109323]
[1742846137526,0.2196511,88256.0,88255.0,0.01045323]
[1742846137830,0.2196511,88256.0,88255.0,0.01169323]
[1742846140222,0.3329442,88256.0,88255.0,0.01169323]
[1742846140632,0.4838442,88256.0,88255.0,0.01045323]
[1742846140828,0.1132944,88255.0,88254.0,0.1019]
[1742846141024,0.1133111,88242.0,88240.0,0.08869231]
[1742846141229,0.47208,88241.0,88240.0,0.08869231]
[1742846141429,0.62422001,88241.0,88240.0,0.08869231]
[1742846141832,0.63302236,88241.0,88240.0,0.08869231]
[1742846142430,0.57942236,88241.0,88240.0,0.08869231]
[1742846142741,0.57062001,88241.0,88240.0,0.09269231]
[1742846143231,0.57062001,88241.0,88240.0,0.08869231]
[1742846143532,0.57062001,88241.0,88240.0,0.08969231]
[1742846143929,0.57162001,88241.0,88240.0,0.08869231]
[1742846144233,0.57162001,88241.0,88240.0,0.19549231]
[1742846144434,0.57162001,88241.0,88240.0,0.29339231]
[1742846144835,0.57162001,88241.0,88240.0,0.29239231]
[1742846144836,0.57362001,88241.0,88240.0,0.29239231]
[1742846145737,0.68002001,88241.0,88240.0,0.29239231]
[1742846146538,0.57362001,88241.0,88240.0,0.29239231]
[1742846150533,0.57362001,88241.0,88240.0,0.19509231]
[1742846151134,0.68693241,88241.0,88240.0,0.19509231]
[1742846152033,0.68693241,88241.0,88240.0,0.19449231]
[1742846152234,0.79283241,88241.0,88240.0,0.19449231]
[1742846153736,0.68155241,88241.0,88240.0,0.19449231]
[1742846153936,0.79283241,88241.0,88240.0,0.19449231]
[1742846154436,0.56824001,88241.0,88240.0,0.19449231]
[1742846154637,0.57366001,88241.0,88240.0,0.19449231]
[1742846154938,0.57366001,88241.0,88240.0,0.29929231]
[1742846158446,0.46234001,88241.0,88240.0,0.29929231]
[1742846158645,0.57366001,88241.0,88240.0,0.29929231]
[1742846160146,0.68697241,88241.0,88240.0,0.29929231]
[1742846160341,0.00424001,88241.0,88240.0,0.29929231]
[1742846160549,0.11220001,88241.0,88240.0,0.29929231]
[1742846161050,0.22551241,88241.0,88240.0,0.29929231]
[1742846161649,0.43311241,88241.0,88240.0,0.19509231]
[1742846161852,0.43311241,88241.0,88240.0,0.19449231]
[1742846162052,0.43311241,88241.0,88240.0,0.19509231]
[1742846164962,0.32179241,88241.0,88240.0,0.19509231]
[1742846165166,0.36096991,88264.0,88240.0,0.19509231]
[1742846165360,0.1133025,88249.0,88241.0,0.1028]
[1742846165554,0.1016,88252.0,88241.0,0.1028]
[1742846165754,0.2149034,88248.0,88241.0,0.1028]
[1742846166051,0.1133066,88246.0,88241.0,0.1034]
[1742846166255,0.1133066,88246.0,88242.0,0.0977]
[1742846166454,0.2715562,88248.0,88242.0,0.0977]
[1742846166654,0.1133051,88247.0,88243.0,0.1028]
[1742846167153,0.0981,88246.0,88244.0,0.0966]
[1742846167564,0.0981,88246.0,88245.0,0.1026]
[1742846167957,0.11132,88246.0,88245.0,0.1026]
[1742846168366,0.11232,88246.0,88245.0,0.1026]
[1742846168566,0.11432,88246.0,88245.0,0.1026]
[1742846169973,0.11532,88246.0,88245.0,0.1026]
[1742846170275,0.11632,88246.0,88245.0,0.1026]
[1742846170977,0.005,88246.0,88245.0,0.1026]
[1742846171173,0.00568,88246.0,88245.0,0.46408]
[1742846171477,0.18685914,88256.0,88245.0,0.56408]
[1742846171667,0.65845851,88262.0,88255.0,0.3608]
[1742846171874,0.31421132,88262.0,88256.0,0.1014]
[1742846172372,0.31493132,88262.0,88256.0,0.10212]
[1742846172576,0.00893133,88261.0,88256.0,0.1014]
[1742846172977,0.02741936,88261.0,88256.0,0.1014]
[1742846173280,0.00893133,88260.0,88256.0,0.1014]
[1742846173678,0.00893133,88259.0,88256.0,0.1014]
[1742846174274,0.00893133,88258.0,88256.0,0.1024]
[1742846174478,0.00893133,88258.0,88256.0,0.1034]
[1742846174774,0.00893133,88257.0,88256.0,0.1034]
[1742846176178,0.00893133,88257.0,88256.0,0.3064]
[1742846176681,0.00893133,88257.0,88256.0,0.3074]
[1742846177081,0.00893133,88257.0,88256.0,0.3064]
[1742846177785,0.00965133,88257.0,88256.0,0.30712]
[1742846183787,0.48173133,88257.0,88256.0,0.30712]
[1742846184585,0.58743133,88257.0,88256.0,0.30612]
[1742846184792,0.58743133,88257.0,88256.0,0.30712]
[1742846185395,0.12093133,88257.0,88256.0,0.30712]
[1742846186189,0.22083133,88257.0,88256.0,0.30712]
[1742846186581,0.22083133,88257.0,88256.0,0.30612]
[1742846186781,0.22183133,88257.0,88256.0,0.30512]
[1742846187286,0.58263133,88257.0,88256.0,0.09832]
[1742846187482,0.58263133,88257.0,88256.0,0.0986]
[1742846187789,0.58263133,88257.0,88256.0,0.00176]
[1742846187985,0.58163133,88257.0,88256.0,0.001]
[1742846188184,0.58163133,88257.0,88256.0,0.002]
[1742846190595,0.58263133,88257.0,88256.0,0.001]
[1742846191092,0.58463133,88257.0,88251.0,0.1019]
[1742846191280,0.0948,88256.0,88251.0,0.10262]
[1742846191482,0.09552,88256.0,88251.0,0.10262]
[1742846191686,0.0961,88255.0,88251.0,0.10262]
[1742846191889,0.00893133,88254.0,88251.0,0.10262]
[1742846192090,0.10445133,88254.0,88252.0,0.1033]
[1742846192290,0.0961,88253.0,88252.0,0.10402]
[1742846192488,0.09682,88253.0,88252.0,0.10402]
[1742846193195,0.00072,88253.0,88252.0,0.10402]
[1742846193791,0.19162,88253.0,88252.0,0.10402]
[1742846194406,0.19262,88253.0,88252.0,0.10402]
[1742846194782,0.00172,88253.0,88252.0,0.10402]
[1742846194988,0.114,88253.0,88252.0,0.10402]
[1742846195685,0.00272,88253.0,88252.0,0.10402]
[1742846196599,0.002,88253.0,88252.0,0.10402]
[1742846197797,0.00276,88253.0,88252.0,0.10402]
[1742846198294,0.19626,88253.0,88252.0,0.10402]
[1742846199098,0.20510134,88253.0,88252.0,0.10402]
[1742846200297,0.31634134,88253.0,88252.0,0.10402]
[1742846202698,0.20510134,88253.0,88252.0,0.10402]
[1742846202998,0.31634134,88253.0,88252.0,0.10402]
[1742846209006,0.3075,88253.0,88252.0,0.10402]
[1742846210006,0.19626,88253.0,88252.0,0.10402]
[1742846210206,0.3075,88253.0,88252.0,0.10402]
[1742846212300,0.114,88253.0,88252.0,0.10402]
[1742846213099,0.114,88253.0,88252.0,0.00072]
[1742846213403,0.114,88253.0,88241.0,0.3608]
[1742846213404,0.114,88253.0,88214.0,0.3608]
[1742846213601,0.3608,88240.0,88239.0,0.00105331]
[1742846213802,0.47272,88240.0,88239.0,0.00105331]
[1742846213998,0.36148,88240.0,88239.0,0.10005331]
[1742846214310,0.47272,88240.0,88239.0,0.19775331]
[1742846214602,0.47272,88240.0,88239.0,0.19975331]
[1742846215806,0.00068,88240.0,88239.0,0.19975331]
[1742846216010,0.34424719,88251.0,88239.0,0.19975331]
[1742846216304,0.34496719,88251.0,88239.0,0.19975331]
[1742846216510,0.1976,88250.0,88239.0,0.20175331]
[1742846216709,0.19832,88250.0,88239.0,0.20175331]
[1742846216915,0.11124,88249.0,88239.0,0.20175331]
[1742846217110,0.11188,88249.0,88239.0,0.20175331]
[1742846217403,0.21018,88249.0,88239.0,0.20175331]
[1742846217705,0.30948,88249.0,88239.0,0.20175331]
[1742846218405,0.21018,88249.0,88239.0,0.19975331]
[1742846218610,0.21018,88249.0,88239.0,0.20175331]
[1742846218799,0.11188,88249.0,88239.0,0.20175331]
[1742846218996,0.00064,88249.0,88239.0,0.20175331]
[1742846219202,0.00064,88249.0,88248.0,0.3608]
[1742846219413,0.3608,88276.0,88248.0,0.7518]
[1742846219607,0.38132121,88279.0,88262.0,0.3608]
[1742846219909,0.25043241,88272.0,88271.0,0.3608]
[1742846220111,0.25043241,88272.0,88271.0,0.36176]
[1742846221309,0.25043241,88272.0,88271.0,0.36276]
[1742846222110,0.25043241,88272.0,88271.0,0.00196]
[1742846222308,0.25043241,88272.0,88271.0,0.001]
[1742846223509,0.01372587,88272.0,88264.0,0.0979]
[1742846223814,0.01276586,88272.0,88264.0,0.18882]
[1742846224018,0.1971,88271.0,88264.0,0.18882]
[1742846224810,0.1971,88271.0,88264.0,0.19082]
[1742846225017,0.1971,88271.0,88264.0,0.19282]
[1742846226510,0.1971,88271.0,88264.0,0.19082]
[1742846226821,0.19806001,88271.0,88264.0,0.19182]
[1742846229810,0.19806001,88271.0,88264.0,0.00392]
[1742846230011,0.1028,88270.0,88264.0,0.00392]
[1742846230209,0.10340001,88270.0,88264.0,0.00392]
[1742846230412,0.2004,88269.0,88264.0,0.00392]
[1742846230610,0.20132,88269.0,88264.0,0.00392]
[1742846230814,0.20132,88269.0,88265.0,0.2019]
[1742846231017,0.20132,88269.0,88265.0,0.20282]
[1742846231716,0.1112,88268.0,88265.0,0.20282]
[1742846231921,0.11216001,88268.0,88265.0,0.20282]
[1742846232116,0.1988,88267.0,88265.0,0.20282]
[1742846232420,0.19972,88267.0,88265.0,0.20282]
[1742846233017,0.19972,88267.0,88265.0,0.30552]
[1742846233425,0.00092,88267.0,88265.0,0.30652]
[1742846233618,0.1112,88268.0,88265.0,0.30652]
[1742846233818,0.11216001,88268.0,88265.0,0.30752]
[1742846234017,0.11216001,88268.0,88265.0,0.30852]
[1742846234723,0.2056,88267.0,88265.0,0.30752]
[1742846234918,0.20652,88267.0,88265.0,0.30752]
[1742846235919,0.20652,88267.0,88265.0,0.30652]
[1742846236123,0.20652,88267.0,88265.0,0.30552]
[1742846236922,0.20752,88267.0,88265.0,0.30552]
[1742846237720,0.20852,88267.0,88265.0,0.30552]
[1742846238026,0.00292,88267.0,88265.0,0.30552]
[1742846238225,0.002,88267.0,88265.0,0.30552]
[1742846238428,0.00292,88267.0,88265.0,0.30552]
[1742846239125,0.00092,88267.0,88265.0,0.30552]
[1742846239328,0.0955,88266.0,88265.0,0.30552]
[1742846239627,0.09614,88266.0,88265.0,0.30552]
[1742846239828,0.19534,88266.0,88265.0,0.20282]
[1742846240027,0.29014,88266.0,88265.0,0.20282]
[1742846240818,0.29214,88266.0,88265.0,0.20282]
[1742846242830,0.19734,88266.0,88265.0,0.20282]
[1742846244633,0.09814,88266.0,88265.0,0.20282]
[1742846249633,0.10707878,88266.0,88265.0,0.20282]
[1742846254935,0.10707878,88266.0,88265.0,0.09892]
[1742846255124,0.10707878,88266.0,88265.0,0.00092]
[1742846256036,0.10707878,88266.0,88265.0,0.10572]
[1742846261233,0.12213542,88266.0,88264.0,0.0989]
[1742846261544,0.1019,88265.0,88264.0,0.0989]
[1742846261738,0.10254,88265.0,88264.0,0.09958]
[1742846261941,0.20917878,88265.0,88264.0,0.09958]
[1742846262942,0.20917878,88265.0,88264.0,0.00068]
[1742846264546,0.21117878,88265.0,88264.0,0.00068]
[1742846267441,0.21117878,88265.0,88264.0,8.538e-05]
[1742846267632,0.21117878,88265.0,88264.0,0.0006]
[1742846272843,0.21117878,88265.0,88263.0,0.00016991]
[1742846273048,0.00893878,88264.0,88263.0,0.00016991]
[1742846273249,0.00965878,88264.0,88263.0,0.00016991]
[1742846273449,0.21535878,88264.0,88263.0,0.00016991]
[1742846274949,0.21735878,88264.0,88263.0,0.00016991]
[1742846276349,0.21729587,88264.0,88263.0,0.00016991]
[1742846279746,0.32845587,88264.0,88263.0,0.00016991]
[1742846281252,0.31958,88264.0,88263.0,0.00016991]
[1742846282949,0.00272,88264.0,88263.0,0.00016991]
[1742846283146,0.00851208,88276.0,88263.0,0.00016991]
[1742846283147,0.3608,88286.0,88263.0,0.15076991]
[1742846283346,0.00977708,88280.0,88276.0,0.3608]
[1742846283554,0.00056991,88280.0,88277.0,0.1886]
[1742846283853,0.00897401,88279.0,88277.0,0.18936]
[1742846284649,0.00897401,88278.0,88277.0,0.18936]
[1742846286355,0.00897401,88278.0,88277.0,0.28046]
[1742846286957,0.00965401,88278.0,88277.0,0.28046]
[1742846287360,0.12081401,88278.0,88277.0,0.18936]
[1742846287848,0.21891401,88278.0,88277.0,0.18936]
[1742846288245,0.33217891,88278.0,88277.0,0.00076]
[1742846288548,0.21891401,88278.0,88269.0,0.1955]
[1742846288749,0.21891401,88278.0,88269.0,0.19618]
[1742846288750,0.3608,88270.0,88269.0,0.19618]
[1742846288944,0.36156,88270.0,88269.0,0.19618]
[1742846289158,0.37053401,88270.0,88269.0,0.19618]
[1742846291260,0.48169401,88270.0,88269.0,0.19618]
[1742846292446,0.48169401,88270.0,88269.0,0.00068]
[1742846292652,0.48169401,88270.0,88264.0,0.0983]
[1742846292852,0.2835,88269.0,88264.0,0.09906]
[1742846293064,0.29315401,88269.0,88264.0,0.09906]
[1742846293560,0.00897401,88268.0,88264.0,0.00076]
[1742846293761,0.00965401,88268.0,88264.0,0.09906]
[1742846293952,0.1923,88267.0,88264.0,0.09906]
[1742846294156,0.11116,88266.0,88265.0,0.0973]
[1742846294358,0.12013401,88266.0,88265.0,0.19482]
[1742846294558,0.31315401,88266.0,88265.0,0.19482]
[1742846296060,0.31315401,88266.0,88265.0,0.19582]
[1742846297456,0.31415401,88266.0,88265.0,0.19582]
[1742846297656,0.31415401,88266.0,88265.0,0.19482]
[1742846298161,0.12185401,88266.0,88265.0,0.19482]
[1742846300067,0.12085401,88266.0,88265.0,0.19582]
[1742846300867,0.12085401,88266.0,88265.0,0.19682]
[1742846301570,0.12085401,88266.0,88265.0,0.19582]
[1742846301864,0.12085401,88266.0,88265.0,0.19682]
[1742846302460,0.12085401,88266.0,88265.0,0.10002]
[1742846302870,0.12081401,88266.0,88265.0,0.10002]
[1742846303071,0.31341401,88266.0,88265.0,0.19592]
[1742846303570,0.31341401,88266.0,88265.0,0.19492]
[1742846303971,0.31341401,88266.0,88265.0,0.19392]
[1742846304170,0.30444,88266.0,88265.0,0.19392]
[1742846304564,0.30544,88266.0,88265.0,0.19392]
[1742846305365,0.31426892,88266.0,88265.0,0.19392]
[1742846305764,0.12166892,88266.0,88265.0,0.19392]
[1742846305961,0.01054892,88266.0,88265.0,0.19392]
[1742846306166,0.00172,88266.0,88265.0,0.19392]
[1742846307373,0.001,88266.0,88265.0,0.19392]
[1742846307669,0.00979661,88266.0,88265.0,0.19392]
[1742846308576,0.00979661,88266.0,88265.0,0.19492]
[1742846309971,0.00879661,88266.0,88265.0,0.19492]
[1742846310171,0.00879661,88266.0,88265.0,0.19592]
[1742846310573,0.00879661,88266.0,88265.0,0.19492]
[1742846310876,0.00879661,88266.0,88265.0,0.19592]
[1742846311782,0.00951661,88266.0,88265.0,0.19592]
[1742846317585,0.00951661,88266.0,88265.0,0.10002]
[1742846317887,0.12063661,88266.0,88265.0,0.10002]
[1742846318688,0.12063661,88266.0,88265.0,0.00272]
[1742846318878,0.48143661,88266.0,88265.0,0.00272]
[1742846319079,0.48143661,88266.0,88265.0,0.002]
[1742846319271,0.48143661,88266.0,88252.0,0.1859]
[1742846319476,0.30582,88265.0,88252.0,0.54738]
[1742846319671,0.19538,88265.0,88261.0,0.3608]
[1742846319883,0.00068,88265.0,88262.0,0.1899]
[1742846320079,0.00879661,88264.0,88262.0,0.19066]
[1742846320673,0.00879661,88263.0,88262.0,0.19066]
[1742846321571,0.00879661,88263.0,88262.0,0.19266]
[1742846322074,0.02376991,88263.0,88262.0,0.19266]
[1742846323180,0.00879661,88263.0,88262.0,0.19166]
[1742846323376,0.00879661,88263.0,88262.0,0.19266]
[1742846323886,0.02376991,88263.0,88262.0,0.19266]
[1742846324384,0.02444991,88263.0,88262.0,0.19266]
[1742846327881,0.00947661,88263.0,88262.0,0.19266]
[1742846330073,0.00947661,88263.0,88262.0,0.19166]
[1742846330274,0.01047661,88263.0,88262.0,0.19066]
[1742846330473,0.01047661,88263.0,88262.0,0.00076]
[1742846330677,0.31445661,88263.0,88240.0,0.3608]
[1742846330877,0.3608,88255.0,88253.0,0.0903]
[1742846331081,0.36144,88255.0,88254.0,0.0951]
[1742846331282,0.47252,88255.0,88254.0,0.00076]
[1742846331483,0.47252,88255.0,88243.0,0.27050766]
[1742846331484,0.47252,88255.0,88245.0,0.0972]
[1742846331684,0.3608,88247.0,88245.0,0.09788]
[1742846331893,0.36148,88247.0,88246.0,0.0941]
[1742846332092,0.36148,88247.0,88246.0,0.09478]
[1742846332479,0.37027661,88247.0,88246.0,0.09478]
[1742846333278,0.37027661,88247.0,88246.0,0.09578]
[1742846333686,0.3905843,88247.0,88246.0,0.00168]
[1742846334587,0.3905843,88247.0,88246.0,0.001]
[1742846334783,0.3905843,88247.0,88246.0,0.002]
[1742846337588,0.3905843,88247.0,88246.0,0.00276]
[1742846338185,0.5016643,88247.0,88246.0,0.002]
[1742846338779,0.5016643,88247.0,88246.0,0.00268]
[1742846339690,0.5016643,88247.0,88246.0,0.002]
[1742846340596,0.5016643,88247.0,88246.0,0.00268]
[1742846340794,0.5016643,88247.0,88246.0,0.002]
[1742846341187,0.5016643,88247.0,88228.0,0.1882]
[1742846341387,0.3608,88244.0,88228.0,0.1882]
[1742846341595,0.36148,88244.0,88228.0,0.1882]
[1742846341989,0.00879661,88243.0,88228.0,0.1882]
[1742846342296,0.00939662,88243.0,88228.0,0.1882]
[1742846342492,0.00879661,88242.0,88239.0,0.00345331]
[1742846343191,0.00947661,88242.0,88239.0,0.00345331]
[1742846343393,0.00879661,88241.0,88239.0,0.00345331]
[1742846343693,0.00879661,88240.0,88239.0,0.00345331]
[1742846343992,0.08167786,88290.0,88239.0,0.12713331]
[1742846344201,0.3608,88317.0,88258.0,0.7216]
[1742846344389,0.3608,88309.0,88295.0,1.8608]
[1742846344591,0.39249924,88296.0,88295.0,1.61]
[1742846344796,0.39317924,88296.0,88295.0,1.50068]
[1742846345098,0.39317924,88296.0,88295.0,0.00068]
[1742846345302,0.38870528,88296.0,88295.0,0.00068]
[1742846345601,0.38870528,88296.0,88288.0,1.5]
[1742846345797,0.38802528,88296.0,88288.0,1.5]
[1742846345994,0.01546631,88295.0,88288.0,1.5]
[1742846346195,0.01546631,88295.0,88293.0,0.3608]
[1742846346697,0.12525112,88304.0,88293.0,0.7008]
[1742846346900,0.17344057,88319.0,88303.0,0.3608]
[1742846347195,0.0932,88352.0,88303.0,0.3608]
[1742846347196,0.3608,88355.0,88311.0,0.3608]
[1742846347396,0.0906,88352.0,88327.0,0.3608]